fUSD/lending_fUSD_20240209
["ID","MTS","AMOUNT","RATE_DAILY","PERIOD"]
[313617102,1707481845079,-631.49428514,0.00028252,4]
[313617104,1707481845089,-840.0,0.00028302,2]
[313617134,1707481845337,-294.15,0.00028305,2]
[313617138,1707481845401,-500.0,0.00028365,2]
[313617140,1707481845412,-250.0,0.0002838,2]
[313617142,1707481845423,-163.67,0.00028493,2]
[313617144,1707481845433,-172.59,0.00028577,2]
[313617146,1707481845443,-202.98,0.00028939,2]
[313617147,1707481845453,-450.0,0.00029,3]
[313617150,1707481845463,-557.28,0.00029301,2]
[313617152,1707481845473,-430.34675312,0.00029578,2]
[313617154,1707481845483,-478.225,0.00029822,2]
[313617156,1707481845492,-2285.0,0.00029822,2]
[313617158,1707481845502,-1911.688,0.00029822,2]
[313617160,1707481845511,-2518.0,0.00029822,2]
[313617162,1707481845520,-294.15,0.00029949,2]
[313617164,1707481845530,-161.6861344,0.0003,4]
[313617166,1707481845540,-269.7197096,0.0003,4]
[313617168,1707481845551,-471.44764932,0.0003,4]
[313617170,1707481845560,-915.71516297,0.0003,4]
[313617172,1707481845570,-2667.28077725,0.0003,4]
[313617173,1707481845580,-1813.8010918,0.0003,4]
[313617174,1707481845589,-3000.0,0.0003,2]
[313617175,1707481845599,-3000.0,0.0003,2]
[313617176,1707481845608,-3000.0,0.0003,2]
[313617177,1707481845623,-3000.0,0.0003,2]
[313617178,1707481845632,-1301.73038698,0.0003,2]
[313617179,1707481845645,-1698.26961302,0.0003,2]
[313617180,1707481845655,-3000.0,0.0003,2]
[313617181,1707481845664,-200.0,0.00030011,2]
[313617182,1707481845676,-154.56,0.00030137,2]
[313617183,1707481845689,-631.49428514,0.00030928,5]
[313617184,1707481845698,-11943.90803177,0.0003098,2]
[313617185,1707481845710,-640.041,0.0003098,2]
[313617186,1707481845724,-7239.28644298,0.0003098,2]
[313617187,1707481845735,-150.0,0.00031112,7]
[313617188,1707481845744,-202.98,0.00031203,2]
[313617189,1707481845755,-430.34675312,0.00031248,2]
[313617190,1707481845765,-525.39441223,0.00031399,14]
[313617191,1707481845791,-335.74335286,0.00031399,14]
[313617192,1707481845800,-172.59,0.00031434,2]
[313617193,1707481845809,-180.0,0.00031644,2]
[313617194,1707481845818,-65.34664394,0.0003184,2]
[313617195,1707481845844,-774.65335606,0.0003184,2]
[313617196,1707481845854,-13149.50919878,0.00032,4]
[313617197,1707481845866,-208.08222373,0.00032,2]
[313617198,1707481845876,-208.08222373,0.00032,2]
[313617199,1707481845885,-208.08222373,0.00032,2]
[313617200,1707481845894,-208.08222373,0.00032,2]
[313617201,1707481845904,-208.08222373,0.00032,2]
[313617202,1707481845915,-208.08222373,0.00032,2]
[313617203,1707481845924,-208.08222373,0.00032,2]
[313617204,1707481845934,-208.08222373,0.00032,2]
[313617205,1707481845943,-208.08222373,0.00032,2]
[313617206,1707481845956,-208.08222373,0.00032,2]
[313617207,1707481845966,-208.08222373,0.00032,2]
[313617208,1707481845976,-208.08222373,0.00032,2]
[313617209,1707481845985,-208.08222373,0.00032,2]
[313617210,1707481845995,-208.08222373,0.00032,2]
[313617211,1707481846005,-208.08222373,0.00032,2]
[313617212,1707481846014,-208.08222373,0.00032,2]
[313617213,1707481846024,-208.08222373,0.00032,2]
[313617214,1707481846034,-208.08222373,0.00032,2]
[313617215,1707481846044,-208.08222373,0.00032,2]
[313617216,1707481846053,-208.08222373,0.00032,2]
[313617217,1707481846064,-208.08222373,0.00032,2]
[313617218,1707481846074,-208.08222373,0.00032,2]
[313617219,1707481846083,-208.08222373,0.00032,2]
[313617220,1707481846093,-208.08222373,0.00032,2]
[313617221,1707481846103,-208.08222373,0.00032,2]
[313617222,1707481846114,-208.08222373,0.00032,2]
[313617223,1707481846123,-208.08222373,0.00032,2]
[313617224,1707481846133,-208.08222373,0.00032,2]
[313617225,1707481846142,-208.08222373,0.00032,2]
[313617226,1707481846152,-208.08222373,0.00032,2]
[313617227,1707481846161,-208.08222373,0.00032,2]
[313617228,1707481846171,-208.08222373,0.00032,2]
[313617229,1707481846180,-208.08222373,0.00032,2]
[313617230,1707481846190,-208.08222373,0.00032,2]
[313617231,1707481846199,-208.08222373,0.00032,2]
[313617232,1707481846209,-208.08222373,0.00032,2]
[313617234,1707481846219,-208.08222373,0.00032,2]
[313617235,1707481846229,-208.08222373,0.00032,2]
[313617236,1707481846239,-208.08222373,0.00032,2]
[313617237,1707481846248,-208.08222373,0.00032,2]
[313617239,1707481846258,-208.08222373,0.00032,2]
[313617240,1707481846267,-208.08222373,0.00032,2]
[313617241,1707481846277,-208.08222373,0.00032,2]
[313617242,1707481846287,-208.08222373,0.00032,2]
[313617243,1707481846296,-208.08222373,0.00032,2]
[313617244,1707481846305,-208.08222373,0.00032,2]
[313617245,1707481846315,-208.08222373,0.00032,2]
[313617246,1707481846324,-208.08222373,0.00032,2]
[313617247,1707481846333,-208.08222373,0.00032,2]
[313617248,1707481846344,-208.08222373,0.00032,2]
[313617249,1707481846353,-208.08222373,0.00032,2]
[313617250,1707481846363,-208.08222373,0.00032,2]
[313617251,1707481846372,-208.08222373,0.00032,2]
[313617252,1707481846382,-208.08222373,0.00032,2]
[313617253,1707481846391,-208.08222373,0.00032,2]
[313617254,1707481846401,-208.08222373,0.00032,2]
[313617255,1707481846410,-208.08222373,0.00032,2]
[313617256,1707481846419,-208.08222373,0.00032,2]
[313617257,1707481846430,-208.08222373,0.00032,2]
[313617258,1707481846439,-208.08222373,0.00032,2]
[313617259,1707481846449,-208.08222373,0.00032,2]
[313617260,1707481846458,-208.08222373,0.00032,2]
[313617261,1707481846467,-208.08222373,0.00032,2]
[313617262,1707481846477,-208.08222373,0.00032,2]
[313617263,1707481846487,-208.08222373,0.00032,2]
[313617264,1707481846497,-208.08222373,0.00032,2]
[313617265,1707481846507,-208.08222373,0.00032,2]
[313617266,1707481846517,-208.08222373,0.00032,2]
[313617267,1707481846526,-208.08222373,0.00032,2]
[313617268,1707481846536,-208.08222373,0.00032,2]
[313617269,1707481846546,-208.08222373,0.00032,2]
[313617270,1707481846556,-208.08222373,0.00032,2]
[313617271,1707481846566,-208.08222373,0.00032,2]
[313617272,1707481846576,-208.08222373,0.00032,2]
[313617273,1707481846585,-208.08222373,0.00032,2]
[313617274,1707481846595,-208.08222373,0.00032,2]
[313617275,1707481846604,-208.08222373,0.00032,2]
[313617276,1707481846614,-208.08222373,0.00032,2]
[313617277,1707481846625,-208.08222373,0.00032,2]
[313617278,1707481846635,-208.08222373,0.00032,2]
[313617279,1707481846644,-208.08222373,0.00032,2]
[313617280,1707481846653,-208.08222373,0.00032,2]
[313617281,1707481846668,-208.08222373,0.00032,2]
[313617282,1707481846679,-208.08222373,0.00032,2]
[313617283,1707481846688,-208.08222373,0.00032,2]
[313617284,1707481846698,-208.08222373,0.00032,2]
[313617285,1707481846708,-701.2500694,0.00032233,2]
[313617286,1707481846718,-200.0,0.0003274,2]
[313617287,1707481846728,-430.34675312,0.00032919,4]
[313617288,1707481846738,-471.48520056,0.00032981,4]
[313617289,1707481846747,-252.98539305,0.00032981,4]
[313617290,1707481846757,-189.68423551,0.00032981,4]
[313617291,1707481846766,-290.57909294,0.00032981,6]
[313617292,1707481846775,-283.23344594,0.00032981,6]
[313617293,1707481846785,-232.94580594,0.00032981,6]
[313617294,1707481846805,-248.43998387,0.00032981,6]
[313617295,1707481846815,-190.07781971,0.00032981,4]
[313617296,1707481846824,-275.91888,0.00033,2]
[313617297,1707481846834,-202.98,0.00033467,2]
[313617298,1707481846843,-631.49428514,0.00033604,6]
[313617299,1707481846852,-155.44581024,0.00034,4]
[313617300,1707481846864,-766.92032321,0.00034,4]
[313617301,1707481846873,-4000.0,0.00034,2]
[313617302,1707481846883,-207.0,0.00034129,2]
[313617303,1707481846892,-172.59,0.00034292,2]
[313617304,1707481846902,-1222.758795,0.000345,2]
[313617305,1707481846911,-2518.59395,0.0003452,2]
[313617306,1707481846920,-25555.593222,0.0003452,2]
[313617307,1707481846930,-430.34675312,0.00034589,7]
[313617308,1707481846939,-3777.890925,0.00034794,2]
[313617309,1707481846949,-38333.389834,0.00034794,2]
[313617310,1707481846958,-1834.138193,0.000348,2]
[313617311,1707481846968,-1181.02621616,0.000349,2]
[313617312,1707481846979,-1181.02621615,0.000349,2]
[313617313,1707481846988,-1181.02621615,0.000349,2]
[313617314,1707481846997,-1181.02621615,0.000349,2]
[313617315,1707481847007,-1181.02621615,0.000349,2]
[313617316,1707481847017,-1181.02621615,0.000349,2]
[313617317,1707481847027,-1181.02621615,0.000349,2]
[313617318,1707481847037,-1181.02621615,0.000349,2]
[313617319,1707481847048,-5037.1879,0.00034931,2]
[313617320,1707481847059,-51111.186445,0.00034931,2]
[313617321,1707481847069,-17939.93537986,0.00035,5]
[313617322,1707481847086,-2370.0,0.00035,5]
[313617323,1707481847099,-3726.61482041,0.00035,5]
[313617324,1707481847111,-7891.0,0.00035,5]
[313617325,1707481847369,-364.18627783,0.000229,2]
[313617326,1707481850155,-529.23044145,0.000229,2]
[313617327,1707481850167,-2993.825103,0.000229,2]
[313617328,1707481850180,-1670.30975742,0.000229,2]
[313617329,1707481850192,-10609.9999998,0.000229,2]
[313617330,1707481850275,-9469.2,0.000229,2]
[313617338,1707481850371,-943.11998369,0.000229,2]
[313617341,1707481850383,-2105.08083824,0.000229,2]
[313617344,1707481850404,-1461.814397,0.000229,2]
[313617488,1707482032474,-300.0033,0.00022567,2]
[313617489,1707482032495,-300.0,0.00022799,2]
[313617490,1707482032515,-150.0,0.00022799,2]
[313617491,1707482032540,-2549.9967,0.000228,2]
[313617492,1707482532595,-150.0,0.00022798,2]
[313617493,1707482532615,-150.0,0.00022798,2]
[313617494,1707482532636,-14365.83853973,0.00022799,2]
[313617495,1707482532655,-2141.688,0.000228,2]
[313617496,1707482532674,-5717.2895,0.000228,2]
[313617497,1707482532693,-497.39779607,0.00022899,2]
[313617498,1707482532712,-6394.6231173,0.00022899,2]
[313617499,1707482783329,-200.0,0.00025,2]
[313617500,1707482783349,-511.72114891,0.00025,2]
[313617501,1707482783369,-2924.0,0.000277,2]
[313617502,1707482783389,-155.0,0.00028304,2]
[313617503,1707482783411,-187.71,0.00031612,2]
[313617504,1707482783432,-999.99,0.0003172,2]
[313617505,1707482783452,-499.99,0.0003172,2]
[313617506,1707482783473,-154.605,0.00032197,7]
[313617507,1707482783496,-170.07755436,0.00032981,4]
[313617508,1707482783516,-421.25025053,0.00032981,4]
[313617509,1707482783538,-232.20646999,0.00032981,4]
[313617510,1707482783557,-500.0,0.00033261,2]
[313617511,1707482783577,-464.4,0.00033306,2]
[313617512,1707482783598,-504.0,0.00033336,2]
[313617513,1707482783616,-686.62,0.00033375,120]
[313617514,1707482783635,-150.0,0.00033492,2]
[313617515,1707482783655,-496.0,0.00033547,2]
[313617516,1707482783675,-250.0,0.00033561,2]
[313617517,1707482783752,-2029.45,0.00033638,2]
[313617518,1707482783772,-187.71,0.00033876,2]
[313617519,1707482783793,-179.31,0.00033892,2]
[313617520,1707482783814,-207.0,0.00034363,2]
[313617521,1707482783833,-5000.0,0.000345,20]
[313617522,1707482783853,-150.1,0.00034519,14]
[313617523,1707482783872,-286.3397866,0.00034519,2]
[313617524,1707482783891,-2399.981867,0.0003452,2]
[313617525,1707482783918,-20024.446128,0.0003452,2]
[313617526,1707482783937,-150.0,0.00034548,10]
[313617527,1707482783958,-516.06127,0.0003458,2]
[313617528,1707482783978,-500.0,0.00034652,2]
[313617529,1707482783997,-301.93494721,0.00034715,4]
[313617530,1707482784017,-179.31,0.00034775,2]
[313617531,1707482784038,-3599.972801,0.00034794,2]
[313617532,1707482784058,-25363.9758233,0.00034794,2]
[313617559,1707483031521,-150.277,0.00031016,2]
[313617560,1707483031530,-767.65269377,0.00032981,4]
[313617561,1707483031539,-320.40867429,0.0003434,4]
[313617562,1707483031581,-446.51164892,0.0003434,4]
[313617563,1707483031590,-88.8590033,0.00034341,120]
[313617564,1707483031603,-370.6681967,0.00034341,120]
[313617565,1707483031612,-240.01,0.00034441,2]
[313617566,1707483031622,-716.22752668,0.000347,2]
[313617567,1707483031650,-260.85788274,0.000347,2]
[313617568,1707483031662,-384.3878097,0.000347,2]
[313617569,1707483031760,-2309.82708088,0.000347,2]
[313617570,1707483031770,-170.24803297,0.00034794,14]
[313617571,1707483031779,-4672.6933687,0.00034794,2]
[313617572,1707483031788,-1973.32966249,0.00034794,2]
[313617573,1707483031797,-200.0,0.00034794,2]
[313617574,1707483031806,-687.53321351,0.00034794,4]
[313617575,1707483031815,-6535.6695106,0.00034794,4]
[313617576,1707483031824,-5644.0976297,0.00034794,2]
[313617577,1707483031833,-500.0,0.00034794,2]
[313617578,1707483031843,-500.0,0.00034794,2]
[313617579,1707483031851,-13718.13910119,0.000348,2]
[313617580,1707483031864,-1711.99249184,0.000348,2]
[313617582,1707483031894,-1038.75,0.000348,2]
[313617611,1707483040215,-443.0070299,0.00034794,2]
[313617613,1707483040227,-56.9929701,0.00034794,2]
[313617615,1707483040237,-444.7072012,0.00034794,2]
[313617616,1707483040249,-55.2927988,0.00034794,2]
[313617618,1707483040258,-444.7072012,0.00034794,2]
[313617619,1707483040275,-3555.2927988,0.00034794,2]
[313617620,1707483040285,-4668.91535913,0.000348,2]
[313617621,1707483040305,-403.47012699,0.000348,2]
[313617622,1707483040339,-3160.59475388,0.000348,2]
[313617623,1707483040351,-3986.2815106,0.000348,2]
[313617624,1707483040363,-12915.68685511,0.000348,2]
[313617625,1707483040374,-2260.5,0.000348,2]
[313617626,1707483040386,-699.77362014,0.000348,2]
[313617630,1707483041087,-9759.45378112,0.000348,2]
[313617631,1707483041097,-23580.254,0.000348,2]
[313617632,1707483041107,-2187.0829,0.000348,2]
[313617633,1707483041116,-30177.0474,0.000349,2]
[313617634,1707483041126,-7557.9321,0.000349,2]
[313617635,1707483041135,-4799.963735,0.00034931,2]
[313617636,1707483041144,-40048.892257,0.00034931,2]
[313617637,1707483041154,-500.0,0.00034968,2]
[313617638,1707483041163,-1616.5033,0.00034968,2]
[313617639,1707483041172,-50000.0,0.00035,5]
[313617641,1707483041182,-265.08925949,0.00035,2]
[313617643,1707483041194,-531.06,0.00035,2]
[313617645,1707483041208,-1649.36833151,0.00035,2]
[313617647,1707483041218,-781.25024143,0.00035,14]
[313617649,1707483041228,-155.0,0.00035,2]
[313617651,1707483041236,-5000.0,0.00035,25]
[313617653,1707483041246,-22176.74224304,0.00035,7]
[313617654,1707483041255,-258.30377655,0.00035066,4]
[313617655,1707483041265,-555.28243778,0.00035066,4]
[313617656,1707483041274,-500.0,0.00035066,7]
[313617657,1707483041283,-668.16470588,0.00035067,4]
[313617658,1707483041292,-373.65782538,0.00035067,2]
[313617659,1707483041302,-5759.21704222,0.00035068,2]
[313617660,1707483041339,-240.73762678,0.00035068,2]
[313617661,1707483041349,-114.58237322,0.00035068,2]
[313617663,1707483041360,-1548.09643358,0.00035068,2]
[313617664,1707483041380,-498.1733841,0.00035068,2]
[313617665,1707483041391,-3103.72225,0.00035068,2]
[313617666,1707483041402,-2671.99622207,0.00035068,2]
[313617667,1707483041414,-2502.59387264,0.00035068,2]
[313617668,1707483041426,-313.27,0.00035068,2]
[313617669,1707483041437,-5337.77925,0.00035068,2]
[313617670,1707483041448,-14426.89781534,0.00035068,2]
[313617671,1707483041466,-1934.03408974,0.00035068,2]
[313617672,1707483041478,-1811.63303534,0.00035068,2]
[313617673,1707483041490,-15798.33659497,0.00035068,2]
[313617674,1707483041500,-396.12666872,0.00035142,7]
[313617675,1707483041509,-718.83673631,0.00035242,4]
[313617676,1707483041521,-261.99836,0.00035242,4]
[313617677,1707483041533,-1019.16490369,0.00035242,4]
[313617678,1707483041543,-5236.44385906,0.00035342,2]
[313617679,1707483041554,-1066.77153618,0.00035342,2]
[313617680,1707483041566,-693.62025262,0.00035342,2]
[313617681,1707483041577,-1403.10088814,0.00035342,2]
[313617682,1707483041587,-103.44295986,0.00035342,2]
[313617683,1707483041598,-21361.20611066,0.00035342,2]
[313617684,1707483041610,-25556.10247485,0.00035342,2]
[313617686,1707483041677,-3322.59106912,0.00035342,2]
[313617687,1707483041691,-1474.11288083,0.00035342,2]
[313617688,1707483041703,-323.17875603,0.00035342,2]
[313617689,1707483041715,-1704.77468899,0.00035342,2]
[313617690,1707483041733,-638.89389986,0.00035342,2]
[313617691,1707483041836,-15601.2586098,0.00035342,2]
[313617692,1707483041846,-1076.54,0.00035455,2]
[313617693,1707483041855,-3056.896989,0.000356,2]
[313617694,1707483041864,-179.31,0.00035658,2]
[313617695,1707483041873,-516.06127,0.0003566,2]
[313617696,1707483041882,-190.57449618,0.00035999,15]
[313617697,1707483041892,-264.02683244,0.00035999,15]
[313617698,1707483041901,-525.76050494,0.00036,6]
[313617699,1707483041923,-1545.65765253,0.00036,6]
[313617700,1707483041935,-4726.48983999,0.00036,6]
[313617701,1707483041946,-979.31412629,0.00036,6]
[313617702,1707483041960,-1270.41460312,0.00036,6]
[313617703,1707483041990,-635.27416359,0.00036,6]
[313617704,1707483042001,-2103.3787534,0.00036,6]
[313617705,1707483042013,-23136.04533555,0.00036,6]
[313617706,1707483042039,-9925.40017011,0.00036,6]
[313617708,1707483042647,-883.1158126,0.00036,6]
[313617709,1707483042660,-2459.53667299,0.00036,6]
[313617710,1707483042714,-1029.67555499,0.00036,6]
[313617711,1707483042770,-779.9368099,0.00036,6]
[313617712,1707483042780,-257.63837941,0.00036,2]
[313617713,1707483042792,-264.1135013,0.00036,2]
[313617714,1707483042867,-3757.90390329,0.00036,2]
[313617715,1707483042876,-1103.42079869,0.00036,30]
[313617716,1707483042889,-955.59576504,0.00036,30]
[313617717,1707483042900,-7298.61643626,0.00036,30]
[313617718,1707483042909,-396.12666871,0.00036065,7]
[313617719,1707483042919,-187.71,0.0003614,2]
[313617720,1707483042928,-500.0,0.00036441,2]
[313617721,1707483042937,-708.61572969,0.00036906,2]
[313617722,1707483042946,-516.06128,0.0003691,2]
[313617723,1707483042957,-396.12666871,0.00036987,8]
[313617724,1707483042967,-203.56264579,0.00036999,4]
[313617726,1707483042976,-50000.0,0.00037,7]
[313617728,1707483042986,-48591.85725858,0.00037,4]
[313617730,1707483042995,-207.0,0.00037026,2]
[313617732,1707483043005,-5000.0,0.000375,30]
[313617734,1707483043014,-504.0,0.00037503,2]
[313617736,1707483043023,-155.0,0.00037519,4]
[313617738,1707483043036,-180.0,0.00037579,2]
[313617740,1707483043045,-496.0,0.0003774,2]
[313617742,1707483043054,-298.32487588,0.00037874,2]
[313617744,1707483043063,-178.49045559,0.00037898,4]
[313617746,1707483043073,-2163.75089799,0.00037898,4]
[313617748,1707483043082,-10195.73733021,0.00037898,4]
[313617750,1707483043091,-310.0,0.00037899,4]
[313617752,1707483043100,-2194.40507209,0.00037899,4]
[313617753,1707483043110,-169.0,0.000379,27]
[313617754,1707483043119,-300.0,0.000379,13]
[313617755,1707483043128,-85003.6559626,0.000379,3]
[313617756,1707483043137,-396.12666871,0.0003791,8]
[313617757,1707483043147,-85003.6559626,0.00037964,3]
[313617758,1707483043154,-50000.0,0.00037974,15]
[313617759,1707483043163,-156.48972848,0.00037991,11]
[313617760,1707483043172,-50000.0,0.00038,8]
[313617761,1707483043182,-7000.0,0.00038,3]
[313617762,1707483043191,-174.0,0.00038,2]
[313617763,1707483043201,-152.0,0.00038043,3]
[313617764,1707483043212,-176.21256357,0.0003806,11]
[313617765,1707483043221,-177.272751,0.00038076,2]
[313617766,1707483043231,-85003.6559626,0.00038081,3]
[313617767,1707483043240,-66605.3133432,0.00038091,15]
[313617768,1707483043249,-8207.43160315,0.00038125,15]
[313617769,1707483043258,-12378.77904802,0.00038125,15]
[313617770,1707483043268,-516.06127,0.0003816,2]
[313617771,1707483043278,-8420.14328822,0.00038199,15]
[313617772,1707483043286,-500.0,0.0003823,2]
[313617773,1707483043296,-7173.19935182,0.00038282,15]
[313617774,1707483043305,-156.4897284,0.00038352,11]
[313617775,1707483043314,-151.03,0.00038356,2]
[313617776,1707483043323,-169.0,0.000384,27]
[313617777,1707483043333,-153.31752425,0.00038402,2]
[313617778,1707483043342,-154.50463115,0.00038402,2]
[313617779,1707483043351,-187.71,0.00038404,2]
[313617780,1707483043361,-800.0,0.00038437,10]
[313617781,1707483043370,-708.61572969,0.00038485,2]
[313617782,1707483043379,-1396.0,0.000385,7]
[313617783,1707483043388,-152.62497085,0.0003855,2]
[313617784,1707483043397,-85003.6559626,0.0003862,4]
[313617785,1707483043406,-85003.6559626,0.0003864,4]
[313617786,1707483043415,-200000.0,0.0003865,30]
[313617787,1707483043425,-298.32487587,0.00038706,2]
[313617788,1707483043434,-156.4897284,0.00038713,12]
[313617789,1707483043444,-2700.69300548,0.00038746,2]
[313617790,1707483043454,-85003.6559626,0.0003877,4]
[313617791,1707483043464,-203.17376735,0.00038788,4]
[313617792,1707483043473,-155.0,0.0003879,4]
[313617793,1707483043483,-21460.47064362,0.000388,4]
[313617794,1707483043493,-396.12666871,0.00038832,9]
[313617795,1707483043502,-169.0,0.000389,28]
[313617796,1707483043511,-600.0,0.000389,14]
[313617797,1707483043521,-50000.0,0.00039,9]
[313617798,1707483043531,-981.36544133,0.00039,4]
[313617799,1707483043540,-2112.079155,0.00039,32]
[313617800,1707483043549,-156.4897284,0.00039074,12]
[313617801,1707483043559,-156.12,0.0003926,2]
[313617802,1707483043568,-169.0,0.000394,28]
[313617803,1707483043577,-516.06128,0.0003941,2]
[313617804,1707483043587,-156.4897284,0.00039435,13]
[313617805,1707483043596,-5000.0,0.000395,4]
[313617806,1707483043605,-298.32487587,0.00039537,2]
[313617807,1707483043614,-396.12666871,0.00039755,9]
[313617808,1707483043623,-156.4897284,0.00039796,13]
[313617809,1707483043632,-176.21256355,0.0003983,13]
[313617810,1707483043641,-692.4140547,0.00039851,4]
[313617811,1707483043650,-5000.0,0.0003989,3]
[313617812,1707483043660,-169.0,0.000399,29]
[313617813,1707483043669,-900.0,0.000399,14]
[313617814,1707483043678,-257.45326214,0.000399,2]
[313617815,1707483043687,-500.0,0.00039902,10]
[313617816,1707483043696,-500.0,0.00039915,2]
[313617817,1707483043707,-85003.6559626,0.00039969,6]
[313617818,1707483043716,-74055.70773531,0.0003999,6]
[313617819,1707483044303,-10947.94822729,0.0003999,6]
[313617820,1707483044312,-50000.0,0.0004,10]
[313617821,1707483044321,-4376.0414452,0.0004,4]
[313617822,1707483044330,-232.02852822,0.0004,5]
[313617823,1707483044339,-54567.15537309,0.0004,4]
[313617824,1707483044349,-1090.24057843,0.0004,4]
[313617825,1707483044358,-5684.18104048,0.0004,4]
[313617826,1707483044367,-22150.65599362,0.0004,4]
[313617827,1707483044377,-2282.39012735,0.0004,4]
[313617828,1707483044387,-1000.0,0.0004,10]
[313617829,1707483044397,-1000.0,0.0004,2]
[313617830,1707483044407,-5000.0,0.0004,30]
[313617831,1707483044417,-13942.53,0.0004,2]
[313617832,1707483044426,-1161.0,0.0004,2]
[313617833,1707483044436,-259.38,0.0004,2]
[313617834,1707483044446,-800.0,0.00040019,10]
[313617835,1707483044456,-708.61572969,0.00040064,5]
[313617836,1707483044465,-156.4897284,0.00040156,14]
[313617837,1707483044475,-151.03,0.00040274,2]
[313617838,1707483044484,-298.32487587,0.00040369,2]
[313617839,1707483044494,-169.0,0.000404,30]
[313617840,1707483044502,-156.4897284,0.00040517,14]
[313617841,1707483044512,-75000.0,0.00040575,15]
[313617842,1707483044521,-154.92,0.000406,4]
[313617843,1707483044531,-638.15,0.000406,4]
[313617844,1707483044540,-638.15,0.000406,4]
[313617845,1707483044550,-638.15,0.000406,4]
[313617846,1707483044560,-638.15,0.000406,4]
[313617847,1707483044569,-638.15,0.000406,4]
[313617848,1707483044580,-638.15,0.000406,4]
[313617849,1707483044589,-638.15,0.000406,4]
[313617850,1707483044599,-638.15,0.000406,4]
[313617851,1707483044610,-638.15,0.000406,4]
[313617852,1707483044619,-638.15,0.000406,4]
[313617853,1707483044629,-638.15,0.000406,4]
[313617854,1707483044638,-638.15,0.000406,4]
[313617855,1707483044647,-638.15,0.000406,4]
[313617856,1707483044657,-638.15,0.000406,4]
[313617857,1707483044666,-638.15,0.000406,4]
[313617858,1707483044676,-638.15,0.000406,4]
[313617859,1707483044685,-638.15,0.000406,4]
[313617860,1707483044694,-638.15,0.000406,4]
[313617861,1707483044705,-638.15,0.000406,4]
[313617862,1707483044714,-638.15,0.000406,4]
[313617863,1707483044723,-516.06127,0.0004066,5]
[313617864,1707483044733,-187.71,0.00040667,2]
[313617865,1707483044743,-396.12666871,0.00040677,10]
[313617866,1707483044753,-248.32576852,0.00040682,4]
[313617867,1707483044762,-1200.0,0.000407,14]
[313617868,1707483044772,-1330.86563008,0.000407,13]
[313617869,1707483044782,-1330.86563004,0.000407,13]
[313617870,1707483044791,-1330.86563004,0.000407,13]
[313617871,1707483044802,-257.45326214,0.0004075,2]
[313617872,1707483044811,-1600.0,0.000408,14]
[313617873,1707483044821,-207.0,0.00040855,11]
[313617874,1707483044830,-156.4897284,0.00040878,15]
[313617875,1707483044839,-169.0,0.000409,30]
[313617876,1707483044848,-300.0,0.000409,14]
[313617877,1707483044857,-539.29030568,0.00040998,10]
[313617878,1707483044866,-50000.0,0.00041,11]
[313617879,1707483044875,-1023.0,0.00041,10]
[313617880,1707483044884,-750.89557424,0.00041073,4]
[313617881,1707483044893,-157.97762246,0.00041073,4]
[313617882,1707483044902,-7948.08166289,0.00041073,4]
[313617883,1707483044912,-285.80001639,0.00041083,4]
[313617884,1707483044921,-3846.84457293,0.00041084,4]
[313617885,1707483044930,-155.5341225,0.00041093,4]
[313617886,1707483044939,-247.34763938,0.00041093,4]
[313617887,1707483044949,-3569.39351866,0.00041093,2]
[313617888,1707483044959,-702.81617028,0.00041093,4]
[313617889,1707483044968,-593.37869393,0.00041093,4]
[313617890,1707483044978,-1078.15445046,0.00041093,4]
[313617891,1707483044988,-635.53023928,0.00041093,4]
[313617892,1707483044997,-342.76313351,0.00041093,4]